bitfinex/quotes_BTCUSD_20250814
["timestamp","ask_amount","ask_price","bid_price","bid_amount"]
[1755192552285,0.002,118110.0,118100.0,0.17680301]
[1755192552503,0.002,118110.0,118100.0,0.73378554]
[1755192554080,0.002,118110.0,118100.0,0.17680301]
[1755192554290,0.002,118110.0,118100.0,0.73378554]
[1755192554827,0.002,118110.0,118100.0,0.17680301]
[1755192555136,0.002,118110.0,118100.0,0.73378554]
[1755192555751,0.002,118110.0,118100.0,0.17680301]
[1755192555959,0.87870131,118110.0,118100.0,0.002245]
[1755192556303,0.23899553,118110.0,118100.0,0.002245]
[1755192556530,0.23899553,118110.0,118100.0,0.005495]
[1755192557154,0.23799553,118110.0,118100.0,0.005495]
[1755192557350,0.23999553,118110.0,118100.0,0.002245]
[1755192557671,0.17233367,118110.0,118100.0,0.002245]
[1755192558725,0.17133367,118110.0,118100.0,0.17484301]
[1755192559048,0.17433367,118110.0,118100.0,0.005495]
[1755192559770,0.17233367,118110.0,118100.0,0.005495]
[1755192559914,0.30481367,118110.0,118100.0,0.17680301]
[1755192560156,0.13748,118110.0,118100.0,0.73378554]
[1755192560776,0.13748,118110.0,118100.0,0.17680301]
[1755192560956,0.30681367,118110.0,118100.0,0.17680301]
[1755192563703,0.002,118110.0,118100.0,0.73378554]
[1755192564116,0.13648,118110.0,118100.0,0.73378554]
[1755192564564,0.13648,118110.0,118100.0,0.17680301]
[1755192564766,0.13648,118110.0,118100.0,0.73378554]
[1755192565357,0.13648,118110.0,118100.0,0.81650879]
[1755192565910,0.001,118110.0,118100.0,0.84831436]
[1755192566065,0.13648,118110.0,118100.0,1.18831436]
[1755192566655,0.13648,118110.0,118100.0,1.15650879]
[1755192567063,0.13648,118110.0,118100.0,0.59952626]
[1755192567705,0.13648,118110.0,118100.0,1.15650879]
[1755192567912,0.13548,118110.0,118100.0,0.59952626]
[1755192568551,0.13548,118110.0,118100.0,0.51680301]
[1755192568953,0.30481367,118110.0,118100.0,0.51680301]
[1755192569764,0.13548,118110.0,118100.0,0.51680301]
[1755192570502,0.13648,118110.0,118100.0,0.51680301]
[1755192570650,0.30581367,118110.0,118100.0,0.51680301]
[1755192571893,0.30581367,118110.0,118100.0,0.005495]
[1755192572066,0.30581367,118110.0,118100.0,0.002245]
[1755192572763,0.30581367,118110.0,118100.0,0.005495]
[1755192573075,0.30581367,118110.0,118100.0,0.007455]
[1755192573420,0.30581367,118110.0,118100.0,0.002245]
[1755192573840,0.8627962,118110.0,118100.0,0.002245]
[1755192574218,0.30581367,118110.0,118100.0,0.002245]
[1755192574424,0.8627962,118110.0,118100.0,0.002245]
[1755192575275,0.30581367,118110.0,118100.0,0.002245]
[1755192584989,0.30581367,118110.0,118100.0,0.73385554]
[1755192585174,0.17033367,118110.0,118100.0,0.73385554]
[1755192585375,0.30629367,118110.0,118100.0,0.73385554]
[1755192585730,0.30629367,118110.0,118100.0,0.56450753]
[1755192585925,0.30629367,118110.0,118100.0,0.007525]
[1755192586153,0.30629367,118110.0,118100.0,0.56450753]
[1755192586351,0.17033367,118110.0,118100.0,0.56450753]
[1755192586584,0.30629367,118110.0,118100.0,0.56450753]
[1755192586791,0.17033367,118110.0,118100.0,0.73385554]
[1755192586989,0.30625367,118110.0,118100.0,0.17687301]
[1755192587167,0.30625367,118110.0,118100.0,0.73385554]
[1755192588783,0.30625367,118110.0,118100.0,0.56450753]
[1755192589207,0.30625367,118110.0,118100.0,0.73385554]
[1755192590615,0.30625367,118110.0,118100.0,0.56450753]
[1755192591218,0.30625367,118110.0,118100.0,0.007525]
[1755192592320,0.30625367,118110.0,118100.0,0.56450753]
[1755192596013,0.30625367,118110.0,118100.0,0.73385554]
[1755192596714,0.30575888,118110.0,118100.0,0.007525]
[1755192597016,0.30575888,118110.0,118100.0,0.56450753]
[1755192597249,0.00050521,118110.0,118100.0,0.73385554]
[1755192597398,0.13714521,118110.0,118100.0,0.83000605]
[1755192598450,0.13714521,118110.0,118100.0,0.98122276]
[1755192599343,0.13714521,118110.0,118100.0,1.17000605]
[1755192599795,0.13714521,118110.0,118100.0,0.59959626]
[1755192599964,0.13714521,118110.0,118100.0,1.15657879]
[1755192600337,0.13694521,118110.0,118100.0,1.15657879]
[1755192600539,0.13694521,118110.0,118100.0,0.59959626]
[1755192600925,0.13694521,118110.0,118100.0,1.15657879]
[1755192601538,0.13694521,118110.0,118100.0,1.23906322]
[1755192602318,0.13694521,118110.0,118100.0,1.15657879]
[1755192604469,0.00050521,118110.0,118100.0,1.15657879]
[1755192604582,0.17824653,118140.0,118120.0,0.16931933]
[1755192604793,0.00049133,118140.0,118130.0,0.73156753]
[1755192605147,0.306102,118140.0,118130.0,0.73156753]
[1755192605675,0.306102,118140.0,118130.0,0.00314]
[1755192605879,0.306102,118140.0,118120.0,0.16931933]
[1755192605880,0.169305,118130.0,118120.0,0.00314]
[1755192606081,0.16931933,118120.0,118110.0,0.17247367]
[1755192606286,0.30563933,118120.0,118110.0,0.17247367]
[1755192606729,0.169305,118130.0,118120.0,0.16931933]
[1755192606945,0.13628,118130.0,118120.0,0.73151186]
[1755192607788,0.17824653,118140.0,118130.0,0.169305]
[1755192607992,0.17824653,118140.0,118130.0,0.73149753]
[1755192608204,0.31456653,118140.0,118130.0,0.73149753]
[1755192608407,0.17824653,118140.0,118130.0,0.73149753]
[1755192608619,0.31456653,118140.0,118130.0,0.73149753]
[1755192608823,0.00049133,118140.0,118130.0,0.73149753]
[1755192609031,0.306102,118140.0,118130.0,0.73149753]
[1755192609255,0.308102,118140.0,118130.0,0.73149753]
[1755192609949,0.310102,118140.0,118130.0,0.73149753]
[1755192610281,0.308102,118140.0,118130.0,0.56219253]
[1755192610488,0.306102,118140.0,118130.0,0.0032]
[1755192610690,0.1693157,118130.0,118120.0,0.56018253]
[1755192611001,0.1693157,118130.0,118120.0,0.56219253]
[1755192611201,0.1693157,118130.0,118120.0,0.00521]
[1755192611611,0.1693157,118130.0,118120.0,0.0032]
[1755192611814,0.16931933,118120.0,118110.0,0.0032]
[1755192612015,0.30547933,118120.0,118110.0,0.7295162]
[1755192612235,0.30547933,118120.0,118110.0,0.7315262]
[1755192613467,0.30547933,118120.0,118110.0,0.17454367]
[1755192613678,0.30547933,118120.0,118110.0,0.7315262]
[1755192614409,0.30547933,118120.0,118110.0,0.7325262]
[1755192614618,0.30547933,118120.0,118110.0,0.7315262]
[1755192615501,0.30547933,118120.0,118110.0,0.00521]
[1755192615703,0.16933367,118110.0,118100.0,1.33596905]
[1755192615974,0.16933367,118110.0,118100.0,1.33797905]
[1755192616530,0.16933367,118110.0,118100.0,0.82863753]
[1755192616958,0.16933367,118110.0,118100.0,0.271655]
[1755192617804,0.16933367,118110.0,118100.0,0.82863753]
[1755192618013,0.16933367,118110.0,118100.0,0.271655]
[1755192618211,0.16933367,118110.0,118100.0,0.007455]
[1755192618439,0.16933367,118110.0,118100.0,0.56242753]
[1755192619015,0.16933367,118110.0,118100.0,0.56443753]
[1755192619217,0.16933367,118110.0,118100.0,0.56242753]
[1755192619401,0.16933367,118110.0,118100.0,0.002245]
[1755192621492,0.17033367,118110.0,118100.0,0.002245]
[1755192621869,0.17133367,118110.0,118100.0,0.002245]
[1755192624674,0.17133367,118110.0,118100.0,0.005445]
[1755192626062,0.17133367,118110.0,118100.0,0.002245]
[1755192627568,0.17133367,118110.0,118100.0,0.005445]
[1755192627814,0.17133367,118110.0,118100.0,0.56242753]
[1755192628013,0.17133367,118110.0,118100.0,0.56443753]
[1755192628516,0.30717367,118110.0,118100.0,0.007455]
[1755192628714,0.30717367,118110.0,118100.0,0.005445]
[1755192629460,0.30672505,118110.0,118100.0,0.005445]
[1755192632093,0.86370758,118110.0,118100.0,0.002245]
[1755192632536,0.30672505,118110.0,118100.0,0.002245]
[1755192635747,0.31850001,118110.0,118100.0,0.002245]
[1755192636593,0.31850001,118110.0,118100.0,0.005215]
[1755192636793,0.31850001,118110.0,118100.0,0.002245]
[1755192638840,0.30672505,118110.0,118100.0,0.002245]
[1755192639864,0.97119083,118110.0,118100.0,0.002245]
[1755192640602,0.99940424,118110.0,118100.0,0.002245]
[1755192641071,1.03197424,118110.0,118100.0,0.002245]
[1755192641309,1.03097424,118110.0,118100.0,0.002245]
[1755192641538,1.0986361,118110.0,118100.0,0.002245]
[1755192641767,1.0976361,118110.0,118100.0,0.002245]
[1755192641992,1.1016361,118110.0,118100.0,0.002245]
[1755192642886,1.1270551,118110.0,118100.0,0.002245]
[1755192643110,1.05739324,118110.0,118100.0,0.002245]
[1755192643611,1.26351324,118110.0,118100.0,0.002245]
[1755192643826,1.27935787,118110.0,118100.0,0.002245]
[1755192644250,1.26351324,118110.0,118100.0,0.002245]
[1755192645131,1.12791324,118110.0,118100.0,0.002245]
[1755192645516,1.26351324,118110.0,118100.0,0.002245]
[1755192645755,1.23294324,118110.0,118100.0,0.002245]
[1755192647671,0.67596071,118110.0,118100.0,0.002245]
[1755192647873,1.23294324,118110.0,118100.0,0.002245]
[1755192649400,0.67596071,118110.0,118100.0,0.002245]
[1755192649555,1.23294324,118110.0,118100.0,0.002245]
[1755192650036,0.67596071,118110.0,118100.0,0.002245]
[1755192650213,0.54036071,118110.0,118100.0,0.002245]
[1755192650435,0.65851169,118110.0,118100.0,0.007375]
[1755192650637,0.63309269,118110.0,118100.0,0.007375]
[1755192651953,0.4607283,118110.0,118100.0,0.007375]
[1755192652103,0.5963283,118110.0,118100.0,0.007375]
[1755192655747,1.15331083,118110.0,118100.0,0.007375]
[1755192655996,1.15331083,118110.0,118100.0,0.002245]
[1755192656409,0.5963283,118110.0,118100.0,0.005215]
[1755192656612,0.4607283,118110.0,118100.0,0.007375]
[1755192656814,0.5963283,118110.0,118100.0,0.007375]
[1755192657925,0.3932083,118110.0,118100.0,0.007375]
[1755192658315,0.2576083,118110.0,118100.0,0.007375]
[1755192658499,0.3932083,118110.0,118100.0,0.007375]
[1755192659310,0.3902083,118110.0,118100.0,0.007375]
[1755192659712,0.3922083,118110.0,118100.0,0.007375]
[1755192660330,0.3882083,118110.0,118100.0,0.007375]
[1755192660640,0.3912083,118110.0,118100.0,0.007375]
[1755192660795,0.94819083,118110.0,118100.0,0.002245]
[1755192661205,0.3912083,118110.0,118100.0,0.002245]
[1755192661416,0.94819083,118110.0,118100.0,0.002245]
[1755192661600,0.94819083,118110.0,118100.0,0.005215]
[1755192662517,0.94819083,118110.0,118100.0,0.007375]
[1755192662718,0.3912083,118110.0,118100.0,0.007375]
[1755192665448,0.94819083,118110.0,118100.0,0.007375]
[1755192665656,0.94819083,118110.0,118100.0,0.002245]
[1755192665875,0.3912083,118110.0,118100.0,0.002245]
[1755192666076,0.94819083,118110.0,118100.0,0.005215]
[1755192666250,0.3912083,118110.0,118100.0,0.005215]
[1755192666458,0.94819083,118110.0,118100.0,0.005215]
[1755192666663,0.94819083,118110.0,118100.0,0.002245]
[1755192667441,0.97360783,118110.0,118100.0,0.002245]
[1755192667660,0.99860783,118110.0,118100.0,0.002245]
[1755192667870,0.16936235,118090.0,118080.0,0.00306]
[1755192668142,0.16940538,118060.0,118050.0,0.49121671]
[1755192668345,0.30492538,118060.0,118050.0,0.34201]
[1755192668584,0.30492538,118060.0,118050.0,0.00507]
[1755192668766,0.30492538,118060.0,118050.0,0.34507]
[1755192669152,0.30497444,118060.0,118050.0,0.90205253]
[1755192669352,0.30497444,118060.0,118050.0,0.56205253]
[1755192669533,0.30497444,118060.0,118050.0,0.57325212]
[1755192670185,0.30497444,118060.0,118050.0,0.74467185]
[1755192670755,0.30497444,118060.0,118050.0,0.19068932]
[1755192671157,0.30497444,118060.0,118050.0,0.74767185]
[1755192671359,0.13556906,118060.0,118050.0,0.74767185]
[1755192672383,4.906e-05,118060.0,118050.0,0.74767185]
[1755192672588,0.13556906,118060.0,118050.0,0.74767185]
[1755192672789,0.13556906,118060.0,118050.0,0.19068932]
[1755192673023,0.13556906,118060.0,118050.0,0.74767185]
[1755192673178,0.30497444,118060.0,118050.0,0.74767185]
[1755192674077,0.30497444,118060.0,118050.0,0.02126959]
[1755192674498,0.30497444,118060.0,118050.0,0.19068932]
[1755192674743,0.30497444,118060.0,118050.0,0.74767185]
[1755192674921,0.30497444,118060.0,118050.0,0.57825212]
[1755192675352,0.29745444,118060.0,118050.0,0.01926959]
[1755192675700,0.29745444,118060.0,118050.0,0.01726959]
[1755192676001,0.29745444,118060.0,118050.0,0.57625212]
[1755192676495,0.29745444,118060.0,118050.0,0.00807]
[1755192677204,0.29745444,118060.0,118050.0,0.73247226]
[1755192677205,0.30492538,118060.0,118050.0,0.73247226]
[1755192677394,0.30492538,118060.0,118050.0,0.74074293]
[1755192677577,0.30492538,118060.0,118050.0,0.74174293]
[1755192677832,0.30492538,118060.0,118050.0,0.1837604]
[1755192678200,0.30492538,118060.0,118050.0,0.74074293]
[1755192678399,0.30492538,118060.0,118050.0,0.73147226]
[1755192678629,0.30492538,118060.0,118050.0,0.56205253]
[1755192679167,0.30492538,118060.0,118050.0,0.57348512]
[1755192679524,0.30492538,118060.0,118050.0,0.74290485]
[1755192680803,0.30492538,118060.0,118050.0,0.73790485]
[1755192681007,0.30492538,118060.0,118050.0,0.73991485]
[1755192681485,0.30492538,118060.0,118050.0,0.18293232]
[1755192681690,0.30492538,118060.0,118050.0,0.73991485]
[1755192682536,0.30492538,118060.0,118050.0,0.57049512]
[1755192682778,0.30492538,118060.0,118050.0,0.00208]
[1755192682998,0.30694538,118060.0,118040.0,0.5124935]
[1755192683216,0.16941973,118050.0,118040.0,0.5124935]
[1755192683421,0.17143973,118050.0,118040.0,0.00507]
[1755192683634,0.17143973,118050.0,118040.0,0.00201]
[1755192684272,0.17143973,118050.0,118040.0,0.00507]
[1755192684475,0.17143973,118050.0,118040.0,0.00607]
[1755192685154,0.17143973,118050.0,118040.0,0.001]
[1755192685469,0.25712298,118050.0,118040.0,0.001]
[1755192686065,0.88176737,118050.0,118040.0,0.001]
[1755192686739,0.16946224,118030.0,118010.0,0.90026072]
[1755192686927,0.16946224,118030.0,118020.0,0.00507]
[1755192687123,0.30696224,118030.0,118020.0,0.00507]
[1755192687361,0.30696224,118030.0,118020.0,0.00201]
[1755192687783,0.1694628,118020.0,118010.0,0.90026072]
[1755192687984,0.30494224,118030.0,118010.0,0.90227072]
[1755192688394,0.30494224,118030.0,118020.0,0.00306]
[1755192688592,0.1694628,118020.0,118010.0,0.90026072]
[1755192688788,0.1684628,118020.0,118010.0,0.16476056]
[1755192689038,0.1704828,118020.0,118010.0,0.00507]
[1755192689238,0.1704828,118020.0,118010.0,0.00521743]
[1755192689820,0.1684628,118020.0,118010.0,0.00621743]
[1755192690174,0.1684628,118020.0,118010.0,0.00821743]
[1755192690608,0.72746533,118020.0,118010.0,0.00114743]
[1755192690823,0.73042533,118020.0,118010.0,0.00114743]
[1755192691029,0.73042533,118020.0,118010.0,0.00314743]
[1755192691236,0.1734428,118020.0,118010.0,0.00314743]
[1755192691424,0.1704828,118020.0,118010.0,0.00214743]
[1755192691628,0.1734428,118020.0,118010.0,0.00214743]
[1755192691753,0.1734428,118020.0,118010.0,0.00014743]
[1755192692311,0.1704828,118020.0,118010.0,0.00014743]
[1755192693011,0.3039428,118020.0,118010.0,0.72861712]
[1755192693274,0.3049428,118020.0,118010.0,0.73167712]
[1755192694022,0.13648,118020.0,118010.0,0.25717902]
[1755192694210,0.13648,118020.0,118010.0,0.81416155]
[1755192694428,0.13648,118020.0,118010.0,0.73167712]
[1755192694669,0.3059428,118020.0,118010.0,0.17469459]
[1755192695325,0.001,118020.0,118010.0,0.82850891]
[1755192695531,0.001,118020.0,118010.0,1.31972562]
[1755192695933,0.13648,118020.0,118010.0,1.40221005]
[1755192696136,0.001,118020.0,118010.0,1.40221005]
[1755192696341,0.001,118020.0,118010.0,1.4849333]
[1755192696787,0.001,118020.0,118010.0,1.50238232]
[1755192696999,0.001,118020.0,118010.0,1.53367232]
[1755192697199,0.13556,118030.0,118020.0,0.52691182]
[1755192697369,0.17787627,118060.0,118050.0,0.16941973]
[1755192697600,0.17787627,118060.0,118050.0,0.00525]
[1755192697601,0.31553564,118060.0,118050.0,0.00525]
[1755192697908,0.31553564,118060.0,118050.0,0.16941973]
[1755192698086,0.31553564,118060.0,118050.0,0.17149973]
[1755192698497,0.13766,118060.0,118050.0,0.17149973]
[1755192698776,0.24852542,118070.0,118060.0,0.16940538]
[1755192698777,0.24553542,118070.0,118060.0,0.16940538]
[1755192698960,0.38311542,118070.0,118050.0,0.17273716]
[1755192699568,0.16940538,118060.0,118050.0,0.17273716]
[1755192699889,0.16940538,118060.0,118050.0,0.17481716]
[1755192700086,0.24553542,118070.0,118050.0,0.17481716]
[1755192700283,0.13548,118060.0,118050.0,0.17481716]
[1755192700532,0.30488538,118060.0,118050.0,0.17481716]
[1755192700745,0.30698538,118060.0,118050.0,0.16956716]
[1755192700921,0.30798538,118060.0,118050.0,0.16956716]
[1755192701155,0.30798538,118060.0,118050.0,0.01142126]
[1755192701356,0.30798538,118060.0,118050.0,0.00014743]
[1755192701764,0.13958,118060.0,118050.0,0.17164716]
[1755192702191,0.13958,118060.0,118050.0,0.17481716]
[1755192702399,0.30898538,118060.0,118050.0,0.18267768]
[1755192702616,0.30898538,118060.0,118050.0,0.00014743]
[1755192702834,0.39469863,118060.0,118050.0,0.00014743]
[1755192703717,1.04851295,118060.0,118050.0,0.00014743]
[1755192703896,1.10230295,118060.0,118050.0,0.00014743]
[1755192704735,1.10030295,118060.0,118050.0,0.00014743]
[1755192704948,1.11775197,118060.0,118050.0,0.00014743]
[1755192705136,1.12275197,118060.0,118050.0,0.00014743]
[1755192706421,1.18671465,118060.0,118050.0,0.00014743]
[1755192706749,1.20254431,118060.0,118050.0,0.00014743]
[1755192707370,1.22797631,118060.0,118050.0,0.00014743]
[1755192708200,0.57416199,118060.0,118050.0,0.00014743]
[1755192708406,1.22797631,118060.0,118050.0,0.00014743]
[1755192710145,1.18901363,118060.0,118050.0,0.00014743]
[1755192711936,0.16944844,118030.0,118020.0,0.00317]
[1755192712164,0.1694628,118020.0,118010.0,0.00317]
[1755192712383,0.1694628,118020.0,118010.0,0.00539746]
[1755192712618,0.1715628,118020.0,118010.0,0.00222746]
[1755192713577,0.25428605,118020.0,118010.0,0.00014746]
[1755192714208,0.93609037,118020.0,118010.0,0.00014746]
[1755192714471,0.28227605,118020.0,118010.0,0.00014746]
[1755192714697,0.28127605,118020.0,118010.0,0.00014746]
[1755192716082,0.28227605,118020.0,118010.0,0.00014746]
[1755192716305,0.41476605,118020.0,118010.0,0.00014746]
[1755192716733,0.25218605,118020.0,118010.0,0.00222746]
[1755192716947,0.25218605,118020.0,118010.0,0.00539746]
[1755192716948,0.38766605,118020.0,118010.0,0.00539746]
[1755192717165,0.3049428,118020.0,118010.0,0.00539746]
[1755192717372,0.1694628,118020.0,118010.0,0.17487462]
[1755192717557,0.13648,118020.0,118010.0,0.86378547]
[1755192717762,0.13648,118020.0,118010.0,0.00539746]
[1755192717763,0.3059428,118020.0,118010.0,0.00539746]
[1755192717901,0.3069428,118020.0,118010.0,0.00539746]
[1755192718299,0.3059428,118020.0,118010.0,0.00539746]
[1755192718807,0.3049428,118020.0,118010.0,0.00539746]
[1755192719004,0.3059428,118020.0,118010.0,0.00539746]
[1755192719492,0.3049428,118020.0,118010.0,0.00539746]
[1755192719682,0.3070428,118020.0,118010.0,0.00222746]
[1755192720039,0.3070428,118020.0,118010.0,0.00014746]
[1755192720357,0.38976605,118020.0,118010.0,0.00014746]
[1755192720903,0.38766605,118020.0,118010.0,0.00539746]
[1755192727216,0.38819605,118020.0,118010.0,0.00014746]
[1755192728190,0.38823605,118020.0,118010.0,0.00534746]
[1755192728406,0.3059828,118020.0,118010.0,0.00534746]
[1755192728872,0.3069828,118020.0,118010.0,0.00534746]
[1755192729603,0.3069828,118020.0,118010.0,0.17482462]
[1755192730357,0.3069828,118020.0,118010.0,0.00534746]
[1755192730919,0.37667466,118020.0,118010.0,0.00214746]
[1755192731177,0.37667466,118020.0,118010.0,0.00014746]
[1755192731374,0.45939791,118020.0,118010.0,0.00014746]
[1755192731891,0.38978605,118020.0,118010.0,0.00534746]
[1755192732266,0.39173605,118020.0,118010.0,0.00534746]
[1755192732447,0.39173605,118020.0,118010.0,0.00014746]
[1755192734722,0.39173605,118020.0,118010.0,0.00214746]
[1755192734914,0.38978605,118020.0,118010.0,0.00534746]
[1755192735134,0.3078628,118020.0,118010.0,0.00534746]
[1755192735551,0.3028628,118020.0,118010.0,0.00534746]
[1755192736169,0.3027828,118020.0,118010.0,0.00534746]
[1755192738129,0.002,118020.0,118010.0,0.17482462]
[1755192738460,0.3077028,118020.0,118010.0,0.91112337]
[1755192738651,0.002,118020.0,118010.0,0.25730905]
[1755192738872,0.1382,118020.0,118010.0,0.25730905]
[1755192739075,0.3066628,118020.0,118010.0,0.25730905]
[1755192739379,0.1704628,118020.0,118010.0,0.25730905]
[1755192739523,0.3065828,118020.0,118010.0,0.25730905]
[1755192739747,0.3066228,118020.0,118010.0,0.25730905]
[1755192739950,0.1704628,118020.0,118010.0,0.25730905]
[1755192740168,0.16944844,118030.0,118010.0,0.25730905]
[1755192740371,0.16944844,118030.0,118020.0,0.1726628]
[1755192740574,0.30556844,118030.0,118020.0,0.1746628]
[1755192741200,0.30556844,118030.0,118020.0,0.0052]
[1755192741501,0.30556844,118030.0,118020.0,0.1746628]
[1755192741717,0.30656844,118030.0,118020.0,0.1746628]
[1755192744143,0.30756844,118030.0,118020.0,0.1746628]
[1755192744297,0.30756844,118030.0,118020.0,0.19514843]
[1755192744493,0.17144844,118030.0,118020.0,0.19514843]
[1755192744819,0.13796,118030.0,118020.0,0.931686]
[1755192745465,0.13696,118030.0,118020.0,0.931686]
[1755192745932,0.30540844,118030.0,118020.0,0.25738605]
[1755192746134,0.30540844,118030.0,118020.0,0.1746628]
[1755192746344,0.30735844,118030.0,118020.0,0.1746628]
[1755192746546,0.13596,118030.0,118020.0,0.1746628]
[1755192746744,0.13596,118030.0,118020.0,0.82847712]
[1755192746914,0.13596,118030.0,118020.0,0.91096155]
[1755192747481,0.30540844,118030.0,118020.0,0.1746628]
[1755192748002,0.30540844,118030.0,118020.0,0.0062]
[1755192748138,0.30735844,118030.0,118020.0,0.1704628]
[1755192748484,0.30735844,118030.0,118020.0,0.1714628]
[1755192748684,0.13596,118030.0,118020.0,0.1766628]
[1755192749088,0.30540844,118030.0,118020.0,0.21515558]
[1755192750438,0.30735844,118030.0,118020.0,0.1766628]
[1755192751101,0.13596,118030.0,118020.0,0.1766628]
[1755192751623,0.30540844,118030.0,118020.0,0.1766628]
[1755192752095,0.16943458,118040.0,118030.0,0.16944844]
[1755192752296,0.38117188,118050.0,118040.0,0.16943409]
[1755192752496,0.20328,118050.0,118040.0,0.17463409]
[1755192752695,0.50865973,118050.0,118040.0,0.17463409]
[1755192753084,0.16943409,118040.0,118030.0,0.17264844]
[1755192753286,0.16943409,118040.0,118030.0,0.16944844]
[1755192753526,0.17138409,118040.0,118030.0,0.17144844]
[1755192753751,0.17138409,118040.0,118030.0,0.17464844]
[1755192754222,0.00195,118040.0,118030.0,0.17464844]
[1755192755997,0.50865973,118050.0,118030.0,0.17464844]
[1755192756229,0.16943409,118040.0,118030.0,0.17464844]
[1755192756465,0.50865973,118050.0,118040.0,0.16943409]
[1755192756697,0.50865973,118050.0,118040.0,0.17471409]
[1755192757415,0.16943409,118040.0,118030.0,0.17263844]
[1755192757615,0.51081973,118050.0,118040.0,0.16943409]
[1755192757616,0.50965973,118050.0,118040.0,0.16943409]
[1755192757823,0.50965973,118050.0,118030.0,0.73034295]
[1755192757824,0.51181973,118050.0,118030.0,0.73034295]
[1755192758043,0.51281973,118050.0,118030.0,0.81282738]
[1755192758271,0.51281973,118050.0,118040.0,0.16943409]
[1755192758531,0.51281973,118050.0,118040.0,0.17152409]
[1755192758751,0.51281973,118050.0,118040.0,0.17471409]
[1755192758983,0.3434,118050.0,118040.0,0.17471409]
[1755192759240,0.51281973,118050.0,118040.0,0.17471409]
[1755192759471,0.51309973,118050.0,118040.0,0.17471409]
[1755192759686,0.51209973,118050.0,118040.0,0.17471409]
[1755192759903,0.51109973,118050.0,118040.0,0.17471409]
[1755192760122,0.51097973,118050.0,118040.0,0.17471409]
[1755192760791,0.51297973,118050.0,118040.0,0.17471409]
[1755192761452,0.51077973,118050.0,118040.0,0.17471409]
[1755192761671,0.17141973,118050.0,118040.0,0.17471409]
[1755192762090,0.002,118050.0,118040.0,0.17471409]
[1755192762336,0.13804,118050.0,118040.0,0.78169139]
[1755192763055,0.13704,118050.0,118040.0,0.78169139]
[1755192763761,0.30545973,118050.0,118040.0,0.18555698]
[1755192764214,0.30761973,118050.0,118040.0,0.18236698]
[1755192764446,0.30761973,118050.0,118040.0,0.01084289]
[1755192764974,0.16943409,118040.0,118030.0,0.77683844]
[1755192765230,0.16943409,118040.0,118030.0,0.77892844]
[1755192765484,0.16982409,118040.0,118030.0,0.2642]
[1755192766233,0.7305786,118040.0,118030.0,0.001]
[1755192766694,0.16944844,118030.0,118020.0,0.01059335]
[1755192766940,0.30474844,118030.0,118020.0,0.01059335]
[1755192767158,0.1694628,118020.0,118010.0,0.52128847]
[1755192767372,0.1694628,118020.0,118010.0,0.60610172]
[1755192767579,0.1694628,118020.0,118010.0,0.68858615]
[1755192767961,0.30432844,118030.0,118010.0,0.68858615]
[1755192768412,0.1694628,118020.0,118010.0,0.68858615]
[1755192768938,0.30432844,118030.0,118010.0,0.68858615]
[1755192769297,0.30432844,118030.0,118020.0,0.1704628]
[1755192769512,0.30432844,118030.0,118020.0,0.25822723]
[1755192769895,0.30432844,118030.0,118020.0,0.25722723]
[1755192772105,0.30432844,118030.0,118020.0,0.1757428]
[1755192772305,0.30432844,118030.0,118020.0,0.73344731]
[1755192772580,0.30646844,118030.0,118020.0,0.1757428]
[1755192772978,0.30432844,118030.0,118020.0,0.1757428]
[1755192773769,0.13588,118030.0,118020.0,0.73344731]
[1755192773985,0.13588,118030.0,118020.0,0.81593174]
[1755192774198,0.13588,118030.0,118020.0,0.25822723]
[1755192774397,0.13588,118030.0,118020.0,0.81593174]
[1755192774799,0.17790579,118040.0,118030.0,0.16944844]
[1755192774998,0.31346579,118040.0,118030.0,0.73243295]
[1755192775196,0.31346579,118040.0,118030.0,0.25721287]
[1755192775395,0.31346579,118040.0,118030.0,0.17472844]
[1755192775602,0.17790579,118040.0,118030.0,0.17472844]
[1755192775857,0.31346579,118040.0,118030.0,0.17472844]
[1755192776887,0.31446579,118040.0,118030.0,0.17472844]
[1755192777515,0.001,118040.0,118030.0,0.73243295]
[1755192777636,0.13656,118040.0,118030.0,0.89764063]
[1755192778076,0.13656,118040.0,118030.0,1.16184063]
[1755192779168,0.13656,118040.0,118030.0,1.0793562]
[1755192779821,0.13656,118040.0,118030.0,0.52165169]
[1755192780015,0.001,118040.0,118030.0,1.0793562]
[1755192780438,0.13652,118040.0,118030.0,1.0793562]
[1755192780856,0.001,118040.0,118030.0,1.0793562]
[1755192781285,0.13652,118040.0,118030.0,1.14511493]
[1755192782062,0.001,118040.0,118030.0,0.92741042]
[1755192782302,0.13652,118040.0,118030.0,1.48511493]
[1755192783152,0.13652,118040.0,118030.0,1.48611493]
[1755192783610,0.13652,118040.0,118030.0,1.48511493]
[1755192784300,0.13652,118040.0,118030.0,1.4193562]
[1755192786475,0.13652,118040.0,118030.0,0.86165169]
[1755192786675,0.13652,118040.0,118030.0,1.4193562]
[1755192791250,0.001,118040.0,118030.0,1.17260522]
[1755192791455,0.001,118040.0,118030.0,2.47561873]
[1755192791593,0.001,118040.0,118030.0,2.68588804]
[1755192791994,1e-08,118040.0,118030.0,2.68941904]
[1755192792214,1e-08,118040.0,118030.0,2.71144035]
[1755192792417,1e-08,118040.0,118030.0,2.69141904]
[1755192792619,0.13552,118080.0,118070.0,0.16939103]
[1755192792857,0.13552,118080.0,118070.0,0.17152103]
[1755192793077,0.13762,118080.0,118070.0,0.73226554]
[1755192793398,0.13762,118080.0,118070.0,0.81474997]
[1755192793599,0.13762,118080.0,118070.0,0.80957997]
[1755192793826,0.13762,118080.0,118070.0,0.25202292]
[1755192794041,0.13762,118080.0,118070.0,0.16953849]
[1755192794042,0.30699669,118080.0,118070.0,0.16953849]
[1755192794680,0.30799669,118080.0,118070.0,0.16953849]
[1755192795045,0.30799669,118080.0,118070.0,0.17982548]
[1755192795523,0.30899669,118080.0,118070.0,0.17982548]
[1755192796400,0.31200669,118080.0,118070.0,0.00014746]
[1755192796623,0.30899669,118080.0,118070.0,0.16953849]
[1755192796836,0.30899669,118080.0,118070.0,0.00014746]
[1755192797271,0.31200669,118080.0,118070.0,0.00014746]
[1755192799423,0.8697112,118080.0,118070.0,0.00014746]
[1755192799637,0.31200669,118080.0,118070.0,0.00014746]
[1755192802423,0.30899669,118080.0,118070.0,0.00014746]
[1755192804283,0.31200669,118080.0,118070.0,0.00014746]
[1755192805400,0.8697112,118080.0,118070.0,0.00014746]
[1755192805962,0.31200669,118080.0,118070.0,0.00014746]
[1755192806163,0.30899669,118080.0,118070.0,0.00014746]
[1755192806771,0.31200669,118080.0,118070.0,0.00014746]
[1755192807373,0.17347669,118080.0,118070.0,0.00014746]
[1755192807585,0.30681669,118080.0,118070.0,0.56302197]